{"text_format":"1","workbook":"xlsx","n_sheets":5,"sheets":["Establishment details","List","Efforts to refine","Translations","Validation"],"not_rendered":{"charts":0,"images":1,"macros":1,"external_links":0,"defined_names":61,"comments":0,"pivot_tables":0},"unopened":[],"bounds":{"document_bytes":16777216,"sheet_cells":100000,"rows_first":2000,"rows_last":500,"rows_between":2000,"halvings":0,"cell_chars":16384,"cell_head_chars":4096},"cells_cut":0,"cells_raw":0,"read":"whole","date_system":"1900"}

{"sheet":"Establishment details","index":0,"n_rows":14,"n_cols":3,"rows_kept":14,"cut":false,"hidden":false,"merged":[[0,1,0,4],[16,1,16,4]]}
[null,{"$f":"CONCATENATE(\"Animal use data \",D14)","v":"Animal use data "}]
[]
[]
[null,null,"Country:"]
[]
[null,null,"First name:"]
[]
[null,null,"Last name:"]
[]
[null,null,"Email:"]
[]
[null,null,"Establishment:"]
[]
[null,null,"Reported year:"]

{"sheet":"List","index":1,"n_rows":3,"n_cols":20,"rows_kept":3,"cut":false,"hidden":false,"merged":[]}
[]
[]
[{"$f":"LabelRecordType","v":"Record type *"},{"$f":"LabelId1","v":"LA Number"},{"$f":"LabelId2","v":"Project Number"},{"$f":"LabelId3","v":"Region Code"},{"$f":"LabelAnimalSpecies","v":"Animal Species *"},{"$f":"LabelSpecifyOtherAnimalSpecies","v":"Specify other"},{"$f":"LabelNumberOfAnimals","v":"Number of Animals *"},{"$f":"LabelGeneticStatus","v":"Genetic status"},{"$f":"LabelCreationOfNewGL","v":"Creation of a new GAA line"},{"$f":"LabelMaintenance","v":"Maintenance of colonies"},{"$f":"LabelCollectionOfOrgans","v":"Collection of organs / tissue"},{"$f":"LabelMethodOfTissueSampling","v":"Method of tissue sampling"},{"$f":"LabelMethodOfTissueSamplingSpecifyOther","v":"Specify other method"},{"$f":"LabelComments","v":"Comments"},{"$f":"LabelField_1","v":"Field 1"},{"$f":"LabelField_2","v":"Field 2"},{"$f":"LabelField_3","v":"Field 3"},{"$f":"LabelField_4","v":"Field 4"},{"$f":"LabelField_5","v":"Field 5"},{"$f":"LabelField_6","v":"Field 6"}]

{"sheet":"Efforts to refine","index":2,"n_rows":1,"n_cols":1,"rows_kept":1,"cut":false,"hidden":false,"merged":[]}
[{"$f":"label_efforts_made_to_refine","v":"Information on efforts made to refine tissue sampling methods"}]

{"sheet":"Translations","index":3,"n_rows":92,"n_cols":63,"rows_kept":92,"cut":false,"hidden":true,"merged":[[2,42,2,44],[2,46,2,47]]}
["Record types","Code","Type of animal",null,"Code + Type",null,null,null,null,null,null,"Countries",null,null,null,"Y/N",null,null,null,"Genetic status",null,null,null,null,null,null,"Reporting Years",null,null,"Methods of tissue sampling",null,null,null,null,null,null,"Id1 Dropdown values","Id2 Dropdown values","Id3 Dropdown values","Other Species Dropdown values","Other Methods of tissue sampling Dropdown values",null,"Table Headers"]
["[IR1] Tissue sampling (non-invasive genotyping or from surplus tissue)","A1","Mice (Mus musculus)",null,{"$f":"CONCATENATE(\"[\",B2,\"] \",C2)","v":"[A1] Mice (Mus musculus)"},null,null,null,null,null,null,"Austria",null,null,null,"[N] No",null,null,null,"[GS1] Not genetically altered",null,null,null,null,null,null,2021,null,null,"[ST1] Surplus tissue from the marking of an animal via ear punch",null,null,null,null,null,null,{"$f":"\"LA1230177\"","v":"LA1230177"},null,"BXL",null,null,null,"Record type *","LA Number","Project Number","Region Code","Animal Species *","Specify other","Number of Animals *","Genetic status","Creation of a new GAA line","Maintenance of colonies","Collection of organs / tissue","Method of tissue sampling","Specify other method","Comments","Field 1","Field 2","Field 3","Field 4","Field 5","Field 6","Information on efforts made to refine tissue sampling methods"]
["[IR2] Animals bred and killed without being used in other procedures","A2","Rats (Rattus norvegicus)",null,"[A2] Rats (Rattus norvegicus)",null,null,null,null,null,null,"Belgium",null,null,null,"[Y] Yes",null,null,null,"[GS4] Genetically altered",null,null,null,null,null,null,2022,null,null,"[ST2] Surplus tissue from the marking of an animal via toe clipping",null,null,null,null,null,null,{"$f":"\"LA1230210\"","v":"LA1230210"},null,"VLA",null,null,null,"Specific userform1 translations"]
[null,"A3","Guinea-Pigs (Cavia porcellus)",null,"[A3] Guinea-Pigs (Cavia porcellus)",null,null,null,null,null,null,"Bulgaria",null,null,null,null,null,null,null,null,null,null,null,null,null,null,2023,null,null,"[NG1] Non-invasive genotyping: hair sampling",null,null,null,null,null,null,{"$f":"\"LA1230212\"","v":"LA1230212"},null,"WAL",null,null,null,"Previous"]
[null,"A4","Hamsters (Syrian) (Mesocricetus auratus)",null,"[A4] Hamsters (Syrian) (Mesocricetus auratus)",null,null,null,null,null,null,"Croatia",null,null,null,null,null,null,null,null,null,null,null,null,null,null,2024,null,null,"[NG2] Non-invasive genotyping: observation under special lighting",null,null,null,null,null,null,{"$f":"\"LA1230213\"","v":"LA1230213"},null,null,null,null,null,"Current Row"]
[null,"A5","Hamsters (Chinese) (Cricetulus griseus)",null,"[A5] Hamsters (Chinese) (Cricetulus griseus)",null,null,null,null,null,null,"Cyprus",null,null,null,null,null,null,null,null,null,null,null,null,null,null,2025,null,null,"[NG3] Non-invasive genotyping: post mortem",null,null,null,null,null,null,{"$f":"\"LA1230214\"","v":"LA1230214"},null,null,null,null,null,"Go!"]
[null,"A6","Mongolian gerbil (Meriones unguiculatus)",null,"[A6] Mongolian gerbil (Meriones unguiculatus)",null,null,null,null,null,null,"Czech Republic",null,null,null,null,null,null,null,null,null,null,null,null,null,null,2026,null,null,"[NG4] Non-invasive genotyping: other",null,null,null,null,null,null,{"$f":"\"LA1230216\"","v":"LA1230216"},null,null,null,null,null,"Next"]
[null,"A7","Other rodents (other Rodentia)",null,"[A7] Other rodents (other Rodentia)",null,null,null,null,null,null,"Denmark",null,null,null,null,null,null,null,null,null,null,null,null,null,null,2027,null,null,null,null,null,null,null,null,null,{"$f":"\"LA1210220\"","v":"LA1210220"},null,null,null,null,null,"Save"]
[null,"A8","Rabbits (Oryctolagus cuniculus)",null,"[A8] Rabbits (Oryctolagus cuniculus)",null,null,null,null,null,null,"Estonia",null,null,null,null,null,null,null,null,null,null,null,null,null,null,2028,null,null,null,null,null,null,null,null,null,{"$f":"\"LA1230270\"","v":"LA1230270"},null,null,null,null,null,"Save & Duplicate"]
[null,"A9","Cats (Felis catus)",null,"[A9] Cats (Felis catus)",null,null,null,null,null,null,"Finland",null,null,null,null,null,null,null,null,null,null,null,null,null,null,2029,null,null,null,null,null,null,null,null,null,{"$f":"\"LA1230272\"","v":"LA1230272"},null,null,null,null,null,"Cancel"]
[null,"A10","Dogs (Canis familiaris)",null,"[A10] Dogs (Canis familiaris)",null,null,null,null,null,null,"France",null,null,null,null,null,null,null,null,null,null,null,null,null,null,2030,null,null,null,null,null,null,null,null,null,{"$f":"\"LA1230274\"","v":"LA1230274"},null,null,null,null,null,"Row Content"]
[null,"A11","Ferrets (Mustela putorius furo)",null,"[A11] Ferrets (Mustela putorius furo)",null,null,null,null,null,null,"Germany",null,null,null,null,null,null,null,null,null,null,null,null,null,null,2031,null,null,null,null,null,null,null,null,null,{"$f":"\"LA1230275\"","v":"LA1230275"},null,null,null,null,null,"Animal Use Details Form"]
[null,"A12","Other carnivores (other Carnivora)",null,"[A12] Other carnivores (other Carnivora)",null,null,null,null,null,null,"Greece",null,null,null,null,null,null,null,null,null,null,null,null,null,null,2032,null,null,null,null,null,null,null,null,null,{"$f":"\"LA1230277\"","v":"LA1230277"}]
[null,"A13","Horses, donkeys and cross-breeds (Equidae)",null,"[A13] Horses, donkeys and cross-breeds (Equidae)",null,null,null,null,null,null,"Hungary",null,null,null,null,null,null,null,null,null,null,null,null,null,null,2033,null,null,null,null,null,null,null,null,null,{"$f":"\"LA1230278\"","v":"LA1230278"}]
[null,"A14","Pigs (Sus scrofa domesticus)",null,"[A14] Pigs (Sus scrofa domesticus)",null,null,null,null,null,null,"Ireland",null,null,null,null,null,null,null,null,null,null,null,null,null,null,null,null,null,null,null,null,null,null,null,null,{"$f":"\"LA1230281\"","v":"LA1230281"}]
[null,"A15","Goats (Capra aegagrus hircus)",null,"[A15] Goats (Capra aegagrus hircus)",null,null,null,null,null,null,"Italy",null,null,null,null,null,null,null,null,null,null,null,null,null,null,null,null,null,null,null,null,null,null,null,null,{"$f":"\"LA1230286\"","v":"LA1230286"}]
[null,"A16","Sheep (Ovis aries)",null,"[A16] Sheep (Ovis aries)",null,null,null,null,null,null,"Latvia",null,null,null,null,null,null,null,null,null,null,null,null,null,null,null,null,null,null,null,null,null,null,null,null,{"$f":"\"LA1230287\"","v":"LA1230287"}]
[null,"A17","Cattle (Bos taurus)",null,"[A17] Cattle (Bos taurus)",null,null,null,null,null,null,"Lithuania",null,null,null,null,null,null,null,null,null,null,null,null,null,null,null,null,null,null,null,null,null,null,null,null,{"$f":"\"LA1230289\"","v":"LA1230289"}]
[null,"A18","Prosimians (Prosimia)",null,"[A18] Prosimians (Prosimia)",null,null,null,null,null,null,"Luxembourg",null,null,null,null,null,null,null,null,null,null,null,null,null,null,null,null,null,null,null,null,null,null,null,null,{"$f":"\"LA1230292\"","v":"LA1230292"}]
[null,"A19","Marmoset and tamarins (eg. Callithrix jacchus)",null,"[A19] Marmoset and tamarins (eg. Callithrix jacchus)",null,null,null,null,null,null,"Malta",null,null,null,null,null,null,null,null,null,null,null,null,null,null,null,null,null,null,null,null,null,null,null,null,{"$f":"\"LA1230296\"","v":"LA1230296"}]
[null,"A20","Cynomolgus monkey (Macaca fascicularis)",null,"[A20] Cynomolgus monkey (Macaca fascicularis)",null,null,null,null,null,null,"Netherlands",null,null,null,null,null,null,null,null,null,null,null,null,null,null,null,null,null,null,null,null,null,null,null,null,{"$f":"\"LA1230297\"","v":"LA1230297"}]
[null,"A21","Rhesus monkey (Macaca mulatta)",null,"[A21] Rhesus monkey (Macaca mulatta)",null,null,null,null,null,null,"Poland",null,null,null,null,null,null,null,null,null,null,null,null,null,null,null,null,null,null,null,null,null,null,null,null,{"$f":"\"LA1230298\"","v":"LA1230298"}]
[null,"A22","Vervets (Chlorocebus spp.) (usually either pygerythrus or sabaeus)",null,"[A22] Vervets (Chlorocebus spp.) (usually either pygerythrus or sabaeus)",null,null,null,null,null,null,"Portugal",null,null,null,null,null,null,null,null,null,null,null,null,null,null,null,null,null,null,null,null,null,null,null,null,{"$f":"\"LA1230308\"","v":"LA1230308"}]
[null,"A23","Baboons (Papio spp.)",null,"[A23] Baboons (Papio spp.)",null,null,null,null,null,null,"Romania",null,null,null,null,null,null,null,null,null,null,null,null,null,null,null,null,null,null,null,null,null,null,null,null,{"$f":"\"LA1230312\"","v":"LA1230312"}]
[null,"A24","Squirrel monkey (eg. Saimiri sciureus)",null,"[A24] Squirrel monkey (eg. Saimiri sciureus)",null,null,null,null,null,null,"Slovakia",null,null,null,null,null,null,null,null,null,null,null,null,null,null,null,null,null,null,null,null,null,null,null,null,{"$f":"\"LA1230314\"","v":"LA1230314"}]
[null,"A25-1","Other species of Old World monkeys (other species of Cercopithecoidea)",null,"[A25-1] Other species of Old World monkeys (other species of Cercopithecoidea)",null,null,null,null,null,null,"Slovenia",null,null,null,null,null,null,null,null,null,null,null,null,null,null,null,null,null,null,null,null,null,null,null,null,{"$f":"\"LA1230316\"","v":"LA1230316"}]
[null,"A25-2","Other species of New World monkeys (other species of Ceboidea)",null,{"$f":"CONCATENATE(\"[\",B27,\"] \",C27)","v":"[A25-2] Other species of New World monkeys (other species of Ceboidea)"},null,null,null,null,null,null,"Spain",null,null,null,null,null,null,null,null,null,null,null,null,null,null,null,null,null,null,null,null,null,null,null,null,{"$f":"\"LA1230321\"","v":"LA1230321"}]
[null,"A26","Apes (Hominoidea)",null,"[A26] Apes (Hominoidea)",null,null,null,null,null,null,"Sweden",null,null,null,null,null,null,null,null,null,null,null,null,null,null,null,null,null,null,null,null,null,null,null,null,{"$f":"\"LA1230352\"","v":"LA1230352"}]
[null,"A27","Other mammals (other Mammalia)",null,"[A27] Other mammals (other Mammalia)",null,null,null,null,null,null,"United Kingdom",null,null,null,null,null,null,null,null,null,null,null,null,null,null,null,null,null,null,null,null,null,null,null,null,{"$f":"\"LA2230389\"","v":"LA2230389"}]
[null,"A28","Domestic fowl (Gallus gallus domesticus)",null,"[A28] Domestic fowl (Gallus gallus domesticus)",null,null,null,null,null,null," ",null,null,null,null,null,null,null,null,null,null,null,null,null,null,null,null,null,null,null,null,null,null,null,null,{"$f":"\"LA2230394\"","v":"LA2230394"}]
[null,"A37","Turkey (Meleagris gallopavo)",null,"[A37] Turkey (Meleagris gallopavo)",null,null,null,null,null,null," ",null,null,null,null,null,null,null,null,null,null,null,null,null,null,null,null,null,null,null,null,null,null,null,null,{"$f":"\"LA2230395\"","v":"LA2230395"}]
[null,"A29","Other birds (other Aves)",null,"[A29] Other birds (other Aves)",null,null,null,null,null,null," ",null,null,null,null,null,null,null,null,null,null,null,null,null,null,null,null,null,null,null,null,null,null,null,null,{"$f":"\"LA2230396\"","v":"LA2230396"}]
[null,"A30","Reptiles (Reptilia)",null,"[A30] Reptiles (Reptilia)",null,null,null,null,null,null," ",null,null,null,null,null,null,null,null,null,null,null,null,null,null,null,null,null,null,null,null,null,null,null,null,{"$f":"\"LA2230397\"","v":"LA2230397"}]
[null,"A31","Rana (Rana temporaria and Rana pipiens)",null,"[A31] Rana (Rana temporaria and Rana pipiens)",null,null,null,null,null,null," ",null,null,null,null,null,null,null,null,null,null,null,null,null,null,null,null,null,null,null,null,null,null,null,null,{"$f":"\"LA1230406\"","v":"LA1230406"}]
[null,"A32","Xenopus (Xenopus laevis and Xenopus tropicalis)",null,"[A32] Xenopus (Xenopus laevis and Xenopus tropicalis)",null,null,null,null,null,null," ",null,null,null,null,null,null,null,null,null,null,null,null,null,null,null,null,null,null,null,null,null,null,null,null,{"$f":"\"LA2230407\"","v":"LA2230407"}]
[null,"A33","Other amphibians (other Amphibia)",null,"[A33] Other amphibians (other Amphibia)",null,null,null,null,null,null," ",null,null,null,null,null,null,null,null,null,null,null,null,null,null,null,null,null,null,null,null,null,null,null,null,{"$f":"\"LA1230408\"","v":"LA1230408"}]
[null,"A34","Zebra fish (Danio rerio)",null,"[A34] Zebra fish (Danio rerio)",null,null,null,null,null,null," ",null,null,null,null,null,null,null,null,null,null,null,null,null,null,null,null,null,null,null,null,null,null,null,null,{"$f":"\"LA1230416\"","v":"LA1230416"}]
[null,"A38","Sea bass (spp. from families e.g. Serranidae, Moronidae)",null,"[A38] Sea bass (spp. from families e.g. Serranidae, Moronidae)",null,null,null,null,null,null," ",null,null,null,null,null,null,null,null,null,null,null,null,null,null,null,null,null,null,null,null,null,null,null,null,{"$f":"\"LA1230417\"","v":"LA1230417"}]
[null,"A39","Salmon, trout, chars and graylings (Salmonidae)",null,"[A39] Salmon, trout, chars and graylings (Salmonidae)",null,null,null,null,null,null," ",null,null,null,null,null,null,null,null,null,null,null,null,null,null,null,null,null,null,null,null,null,null,null,null,{"$f":"\"LA1230418\"","v":"LA1230418"}]
[null,"A40","Guppy, swordtail, molly, platy (Poeciliidae)",null,"[A40] Guppy, swordtail, molly, platy (Poeciliidae)",null,null,null,null,null,null," ",null,null,null,null,null,null,null,null,null,null,null,null,null,null,null,null,null,null,null,null,null,null,null,null,{"$f":"\"LA2230419\"","v":"LA2230419"}]
[null,"A35","Other fish (other Pisces)",null,"[A35] Other fish (other Pisces)",null,null,null,null,null,null," ",null,null,null,null,null,null,null,null,null,null,null,null,null,null,null,null,null,null,null,null,null,null,null,null,{"$f":"\"LA1230439\"","v":"LA1230439"}]
[null,"A36","Cephalopods (Cephalopoda)",null,"[A36] Cephalopods (Cephalopoda)",null,null,null,null,null,null," ",null,null,null,null,null,null,null,null,null,null,null,null,null,null,null,null,null,null,null,null,null,null,null,null,{"$f":"\"LA1230440\"","v":"LA1230440"}]
[null," ",null,null,null,null,null,null,null,null,null," ",null,null,null,null,null,null,null,null,null,null,null,null,null,null,null,null,null,null,null,null,null,null,null,null,{"$f":"\"LA1230441\"","v":"LA1230441"}]
[null," ",null,null,null,null,null,null,null,null,null," ",null,null,null,null,null,null,null,null,null,null,null,null,null,null,null,null,null,null,null,null,null,null,null,null,{"$f":"\"LA1230443\"","v":"LA1230443"}]
[null," ",null,null,null,null,null,null,null,null,null," ",null,null,null,null,null,null,null,null,null,null,null,null,null,null,null,null,null,null,null,null,null,null,null,null,{"$f":"\"LA1230453\"","v":"LA1230453"}]
[null," ",null,null,null,null,null,null,null,null,null," ",null,null,null,null,null,null,null,null,null,null,null,null,null,null,null,null,null,null,null,null,null,null,null,null,{"$f":"\"LA1230454\"","v":"LA1230454"}]
[null," ",null,null,null,null,null,null,null,null,null," ",null,null,null,null,null,null,null,null,null,null,null,null,null,null,null,null,null,null,null,null,null,null,null,null,"LA2230458"]
[null," ",null,null,null,null,null,null,null,null,null," ",null,null,null,null,null,null,null,null,null,null,null,null,null,null,null,null,null,null,null,null,null,null,null,null,{"$f":"\"LA1230460\"","v":"LA1230460"}]
[null," ",null,null,null,null,null,null,null,null,null," ",null,null,null,null,null,null,null,null,null,null,null,null,null,null,null,null,null,null,null,null,null,null,null,null,{"$f":"\"LA1230467\"","v":"LA1230467"}]
[null," ",null,null,null,null,null,null,null,null,null," ",null,null,null,null,null,null,null,null,null,null,null,null,null,null,null,null,null,null,null,null,null,null,null,null,{"$f":"\"LA2230471\"","v":"LA2230471"}]
[null," ",null,null,null,null,null,null,null,null,null," ",null,null,null,null,null,null,null,null,null,null,null,null,null,null,null,null,null,null,null,null,null,null,null,null,{"$f":"\"LA1230472\"","v":"LA1230472"}]
[null," ",null,null,null,null,null,null,null,null,null," ",null,null,null,null,null,null,null,null,null,null,null,null,null,null,null,null,null,null,null,null,null,null,null,null,{"$f":"\"LA1230502\"","v":"LA1230502"}]
[null," ",null,null,null,null,null,null,null,null,null," ",null,null,null,null,null,null,null,null,null,null,null,null,null,null,null,null,null,null,null,null,null,null,null,null,{"$f":"\"LA1230522\"","v":"LA1230522"}]
[null," ",null,null,null,null,null,null,null,null,null," ",null,null,null,null,null,null,null,null,null,null,null,null,null,null,null,null,null,null,null,null,null,null,null,null,{"$f":"\"LA1230524\"","v":"LA1230524"}]
[null," ",null,null,null,null,null,null,null,null,null," ",null,null,null,null,null,null,null,null,null,null,null,null,null,null,null,null,null,null,null,null,null,null,null,null,{"$f":"\"LA1230542\"","v":"LA1230542"}]
[null," ",null,null,null,null,null,null,null,null,null," ",null,null,null,null,null,null,null,null,null,null,null,null,null,null,null,null,null,null,null,null,null,null,null,null,{"$f":"\"LA1230552\"","v":"LA1230552"}]
[null," ",null,null,null,null,null,null,null,null,null," ",null,null,null,null,null,null,null,null,null,null,null,null,null,null,null,null,null,null,null,null,null,null,null,null,{"$f":"\"LA1230567\"","v":"LA1230567"}]
[null," ",null,null,null,null,null,null,null,null,null," ",null,null,null,null,null,null,null,null,null,null,null,null,null,null,null,null,null,null,null,null,null,null,null,null,{"$f":"\"LA1230568\"","v":"LA1230568"}]
[null," ",null,null,null,null,null,null,null,null,null," ",null,null,null,null,null,null,null,null,null,null,null,null,null,null,null,null,null,null,null,null,null,null,null,null,{"$f":"\"LA1230595\"","v":"LA1230595"}]
[null," ",null,null,null,null,null,null,null,null,null," ",null,null,null,null,null,null,null,null,null,null,null,null,null,null,null,null,null,null,null,null,null,null,null,null,{"$f":"\"LA1230608\"","v":"LA1230608"}]
[null," ",null,null,null,null,null,null,null,null,null," ",null,null,null,null,null,null,null,null,null,null,null,null,null,null,null,null,null,null,null,null,null,null,null,null,{"$f":"\"LA1230618\"","v":"LA1230618"}]
[null," ",null,null,null,null,null,null,null,null,null," ",null,null,null,null,null,null,null,null,null,null,null,null,null,null,null,null,null,null,null,null,null,null,null,null,{"$f":"\"LA2230622\"","v":"LA2230622"}]
[null," ",null,null,null,null,null,null,null,null,null," ",null,null,null,null,null,null,null,null,null,null,null,null,null,null,null,null,null,null,null,null,null,null,null,null,{"$f":"\"LA1230623\"","v":"LA1230623"}]
[null," ",null,null,null,null,null,null,null,null,null," ",null,null,null,null,null,null,null,null,null,null,null,null,null,null,null,null,null,null,null,null,null,null,null,null,{"$f":"\"LA1230625\"","v":"LA1230625"}]
[null," ",null,null,null,null,null,null,null,null,null," ",null,null,null,null,null,null,null,null,null,null,null,null,null,null,null,null,null,null,null,null,null,null,null,null,{"$f":"\"LA1230632\"","v":"LA1230632"}]
[null," ",null,null,null,null,null,null,null,null,null," ",null,null,null,null,null,null,null,null,null,null,null,null,null,null,null,null,null,null,null,null,null,null,null,null,{"$f":"\"LA1230633\"","v":"LA1230633"}]
[null," ",null,null,null,null,null,null,null,null,null," ",null,null,null,null,null,null,null,null,null,null,null,null,null,null,null,null,null,null,null,null,null,null,null,null,{"$f":"\"LA1230634\"","v":"LA1230634"}]
[null," ",null,null,null,null,null,null,null,null,null," ",null,null,null,null,null,null,null,null,null,null,null,null,null,null,null,null,null,null,null,null,null,null,null,null,{"$f":"\"LA1230635\"","v":"LA1230635"}]
[null," ",null,null,null,null,null,null,null,null,null," ",null,null,null,null,null,null,null,null,null,null,null,null,null,null,null,null,null,null,null,null,null,null,null,null,{"$f":"\"LA1230637\"","v":"LA1230637"}]
[null," ",null,null,null,null,null,null,null,null,null," ",null,null,null,null,null,null,null,null,null,null,null,null,null,null,null,null,null,null,null,null,null,null,null,null,{"$f":"\"LA1230638\"","v":"LA1230638"}]
[null," ",null,null,null,null,null,null,null,null,null," ",null,null,null,null,null,null,null,null,null,null,null,null,null,null,null,null,null,null,null,null,null,null,null,null,"LA2230640"]
[null," ",null,null,null,null,null,null,null,null,null," ",null,null,null,null,null,null,null,null,null,null,null,null,null,null,null,null,null,null,null,null,null,null,null,null,"LA2230641"]
[null," ",null,null,null,null,null,null,null,null,null," ",null,null,null,null,null,null,null,null,null,null,null,null,null,null,null,null,null,null,null,null,null,null,null,null,"LA2230642"]
[null," ",null,null,null,null,null,null,null,null,null," ",null,null,null,null,null,null,null,null,null,null,null,null,null,null,null,null,null,null,null,null,null,null,null,null,"LA2230643"]
[null," ",null,null,null,null,null,null,null,null,null," ",null,null,null,null,null,null,null,null,null,null,null,null,null,null,null,null,null,null,null,null,null,null,null,null,"LA2230645"]
[null," ",null,null,null,null,null,null,null,null,null," ",null,null,null,null,null,null,null,null,null,null,null,null,null,null,null,null,null,null,null,null,null,null,null,null,"LA2230646"]
[null," ",null,null,null,null,null,null,null,null,null,null,null,null,null,null,null,null,null,null,null,null,null,null,null,null,null,null,null,null,null,null,null,null,null,null,"LA2230647"]
[null," ",null,null,null,null,null,null,null,null,null,null,null,null,null,null,null,null,null,null,null,null,null,null,null,null,null,null,null,null,null,null,null,null,null,null,"LA2230648"]
[null," ",null,null,null,null,null,null,null,null,null,null,null,null,null,null,null,null,null,null,null,null,null,null,null,null,null,null,null,null,null,null,null,null,null,null,"LA2230650"]
[null,null,null,null,null,null,null,null,null,null,null,null,null,null,null,null,null,null,null,null,null,null,null,null,null,null,null,null,null,null,null,null,null,null,null,null,"LA2230651"]
[null,null,null,null,null,null,null,null,null,null,null,null,null,null,null,null,null,null,null,null,null,null,null,null,null,null,null,null,null,null,null,null,null,null,null,null,"LA2230652"]
[null,null,null,null,null,null,null,null,null,null,null,null,null,null,null,null,null,null,null,null,null,null,null,null,null,null,null,null,null,null,null,null,null,null,null,null,"LA1230653"]
[null,null,null,null,null,null,null,null,null,null,null,null,null,null,null,null,null,null,null,null,null,null,null,null,null,null,null,null,null,null,null,null,null,null,null,null,"LA2230654"]
[null,null,null,null,null,null,null,null,null,null,null,null,null,null,null,null,null,null,null,null,null,null,null,null,null,null,null,null,null,null,null,null,null,null,null,null,"LA1230655"]
[null,null,null,null,null,null,null,null,null,null,null,null,null,null,null,null,null,null,null,null,null,null,null,null,null,null,null,null,null,null,null,null,null,null,null,null,"LA1230656"]
[null,null,null,null,null,null,null,null,null,null,null,null,null,null,null,null,null,null,null,null,null,null,null,null,null,null,null,null,null,null,null,null,null,null,null,null,"LA1230657"]
[null,null,null,null,null,null,null,null,null,null,null,null,null,null,null,null,null,null,null,null,null,null,null,null,null,null,null,null,null,null,null,null,null,null,null,null,"LA1230658"]
[null,null,null,null,null,null,null,null,null,null,null,null,null,null,null,null,null,null,null,null,null,null,null,null,null,null,null,null,null,null,null,null,null,null,null,null,"LA1230659"]
[null,null,null,null,null,null,null,null,null,null,null,null,null,null,null,null,null,null,null,null,null,null,null,null,null,null,null,null,null,null,null,null,null,null,null,null,"LA1230660"]
[null,null,null,null,null,null,null,null,null,null,null,null,null,null,null,null,null,null,null,null,null,null,null,null,null,null,null,null,null,null,null,null,null,null,null,null,"LA2230661"]
[null,null,null,null,null,null,null,null,null,null,null,null,null,null,null,null,null,null,null,null,null,null,null,null,null,null,null,null,null,null,null,null,null,null,null,null,"LA1230662"]
[null,null,null,null,null,null,null,null,null,null,null,null,null,null,null,null,null,null,null,null,null,null,null,null,null,null,null,null,null,null,null,null,null,null,null,null,"LA1230663"]

{"sheet":"Validation","index":4,"n_rows":8,"n_cols":2,"rows_kept":8,"cut":false,"hidden":false,"merged":[[2,1,5,6],[7,1,10,6]]}
[]
[]
[null,"If you want to check your data inside \"Animal use details\", click [Validate], then fix these errors (if any) and click again [Validate]."]
[]
[]
[]
[]
[null,"Click [Clean Validation], if you want to clean the red colour in your cells caused by validation errors."]